[Event "Early-Titled-Tuesday-Blitz-November-28-2023"]
[Site "Chess.com"]
[Date "2023.11.28"]
[Round "10"]
[White "Olya_Oblachko"]
[Black "giomar27"]
[Result "0-1"]
[WhiteElo "2235"]
[BlackElo "2422"]
[TimeControl "180+1"]
[EndTime "10:02:14 PST"]
[Termination "giomar27 won by resignation"]

1. Nf3 {[%clk 0:03:00.9]} 1... a6 {[%clk 0:02:55.7]} 2. g3 {[%clk 0:02:49]} 2...
b5 {[%clk 0:02:51.8]} 3. Bg2 {[%clk 0:02:49.9]} 3... Bb7 {[%clk 0:02:51.9]} 4.
O-O {[%clk 0:02:49.6]} 4... g6 {[%clk 0:02:52.3]} 5. d3 {[%clk 0:02:49.3]} 5...
Bg7 {[%clk 0:02:51.8]} 6. e4 {[%clk 0:02:49.2]} 6... d6 {[%clk 0:02:52.2]} 7.
Nbd2 {[%clk 0:02:46.1]} 7... Nd7 {[%clk 0:02:51.8]} 8. Qe2 {[%clk 0:02:46.1]}
8... e6 {[%clk 0:02:51.4]} 9. Re1 {[%clk 0:02:46]} 9... Ne7 {[%clk 0:02:51.3]}
10. c3 {[%clk 0:02:46.2]} 10... O-O {[%clk 0:02:51]} 11. Nf1 {[%clk 0:02:46.6]}
11... c5 {[%clk 0:02:51.1]} 12. h4 {[%clk 0:02:46]} 12... h6 {[%clk 0:02:46.2]}
13. N1h2 {[%clk 0:02:45.4]} 13... e5 {[%clk 0:02:33.6]} 14. Ng4 {[%clk
0:02:41.9]} 14... Kh7 {[%clk 0:02:30.1]} 15. h5 {[%clk 0:02:38.1]} 15... gxh5
{[%clk 0:02:11.5]} 16. Ne3 {[%clk 0:02:35.5]} 16... f5 {[%clk 0:02:10.7]} 17.
exf5 {[%clk 0:02:29.5]} 17... Qc7 {[%clk 0:01:44.1]} 18. Nh4 {[%clk 0:02:10.3]}
18... Bxg2 {[%clk 0:01:43.5]} 19. Kxg2 {[%clk 0:02:10.1]} 19... Nf6 {[%clk
0:01:40.8]} 20. c4 {[%clk 0:02:02.8]} 20... Qc6+ {[%clk 0:01:31.7]} 21. Kg1
{[%clk 0:01:59.5]} 21... d5 {[%clk 0:01:24.4]} 22. cxd5 {[%clk 0:01:53.8]} 22...
Nexd5 {[%clk 0:01:23.8]} 23. Nxd5 {[%clk 0:01:47.4]} 23... Qxd5 {[%clk 0:01:24]}
24. Qxe5 {[%clk 0:01:36.3]} 24... Rfe8 {[%clk 0:01:12.3]} 25. Bf4 {[%clk
0:01:14.5]} 25... Rxe5 {[%clk 0:01:10.7]} 26. Rxe5 {[%clk 0:01:15.4]} 26... Qxd3
{[%clk 0:01:01.9]} 27. Rae1 {[%clk 0:01:14]} 27... Nd5 {[%clk 0:00:52.8]} 28.
R5e4 {[%clk 0:01:00.1]} 28... Nxf4 {[%clk 0:00:49.6]} 29. Rxf4 {[%clk 0:00:59]}
29... Bf6 {[%clk 0:00:37]} 30. Ng6 {[%clk 0:00:41.9]} 30... Kg7 {[%clk
0:00:26.6]} 31. Re6 {[%clk 0:00:26.4]} 31... Qd1+ {[%clk 0:00:24.7]} 32. Kg2
{[%clk 0:00:25.5]} 32... Qd5+ {[%clk 0:00:23.9]} 33. Kh2 {[%clk 0:00:25.2]}
33... Rd8 {[%clk 0:00:12.8]} 34. Rxa6 {[%clk 0:00:21.9]} 34... c4 {[%clk
0:00:11.4]} 35. Ra7+ {[%clk 0:00:16.3]} 35... Rd7 {[%clk 0:00:10.8]} 36. Ra6
{[%clk 0:00:16.8]} 36... b4 {[%clk 0:00:09.8]} 37. Nh4 {[%clk 0:00:13.3]} 37...
c3 {[%clk 0:00:09.3]} 38. bxc3 {[%clk 0:00:13.1]} 38... bxc3 {[%clk 0:00:10.2]}
39. Ra3 {[%clk 0:00:06]} 39... c2 {[%clk 0:00:10.2]} 0-1

[Event "Early-Titled-Tuesday-Blitz-November-28-2023"]
[Site "Chess.com"]
[Date "2023.11.28"]
[Round "10"]
[White "GrumbleBruno"]
[Black "GMthekingindian"]
[Result "0-1"]
[WhiteElo "2426"]
[BlackElo "2340"]
[TimeControl "180+1"]
[EndTime "10:02:16 PST"]
[Termination "GMthekingindian won by resignation"]

1. e4 {[%clk 0:02:59.4]} 1... c5 {[%clk 0:01:59.9]} 2. c3 {[%clk 0:02:57.7]}
2... d5 {[%clk 0:01:59.6]} 3. exd5 {[%clk 0:02:57.5]} 3... Qxd5 {[%clk
0:02:00.5]} 4. d4 {[%clk 0:02:57.8]} 4... Nc6 {[%clk 0:01:59.8]} 5. Nf3 {[%clk
0:02:58]} 5... Nf6 {[%clk 0:02:00.2]} 6. Be3 {[%clk 0:02:57.3]} 6... cxd4 {[%clk
0:01:59.6]} 7. cxd4 {[%clk 0:02:57.2]} 7... e6 {[%clk 0:01:59.7]} 8. Nc3 {[%clk
0:02:57.5]} 8... Qd6 {[%clk 0:02:00.2]} 9. Nb5 {[%clk 0:02:55.9]} 9... Qd8
{[%clk 0:02:00.2]} 10. Be2 {[%clk 0:02:46.9]} 10... a6 {[%clk 0:01:59.9]} 11.
Nc3 {[%clk 0:02:45.1]} 11... b5 {[%clk 0:01:53.6]} 12. O-O {[%clk 0:02:33.5]}
12... Bb7 {[%clk 0:01:53.8]} 13. Ne5 {[%clk 0:02:15.1]} 13... Nxe5 {[%clk
0:01:30.3]} 14. dxe5 {[%clk 0:02:14.3]} 14... Nd5 {[%clk 0:01:30.6]} 15. Nxd5
{[%clk 0:01:36.4]} 15... Qxd5 {[%clk 0:01:30.2]} 16. Qxd5 {[%clk 0:01:28]} 16...
Bxd5 {[%clk 0:01:31.1]} 17. Rac1 {[%clk 0:01:20.8]} 17... Be7 {[%clk 0:01:30.9]}
18. b3 {[%clk 0:01:15.6]} 18... Kd7 {[%clk 0:01:19.8]} 19. Bc5 {[%clk
0:01:02.5]} 19... Bxc5 {[%clk 0:00:52.1]} 20. Rxc5 {[%clk 0:01:01.6]} 20... Rhc8
{[%clk 0:00:52.7]} 21. Rfc1 {[%clk 0:01:01.5]} 21... Rxc5 {[%clk 0:00:52.3]} 22.
Rxc5 {[%clk 0:01:00.9]} 22... Rc8 {[%clk 0:00:52.5]} 23. Rxc8 {[%clk 0:01:01]}
23... Kxc8 {[%clk 0:00:53.4]} 24. f3 {[%clk 0:01:01]} 24... Kc7 {[%clk
0:00:52.8]} 25. Kf2 {[%clk 0:01:01.2]} 25... Kc6 {[%clk 0:00:52.7]} 26. Ke3
{[%clk 0:00:30.6]} 26... Kc5 {[%clk 0:00:52.9]} 27. Kd2 {[%clk 0:00:30.6]} 27...
Kd4 {[%clk 0:00:48.3]} 28. a4 {[%clk 0:00:28.8]} 28... bxa4 {[%clk 0:00:23.9]}
29. bxa4 {[%clk 0:00:28.6]} 29... a5 {[%clk 0:00:24.4]} 30. Bb5 {[%clk
0:00:22.5]} 30... Kxe5 {[%clk 0:00:23.3]} 31. Ke3 {[%clk 0:00:23.1]} 31... g5
{[%clk 0:00:22.3]} 32. g3 {[%clk 0:00:23.2]} 32... Kd6 {[%clk 0:00:19.1]} 33. f4
{[%clk 0:00:19.7]} 33... h6 {[%clk 0:00:19.2]} 34. h4 {[%clk 0:00:17.7]} 34...
f6 {[%clk 0:00:18.7]} 35. hxg5 {[%clk 0:00:16.6]} 35... hxg5 {[%clk 0:00:18.6]}
36. Kd4 {[%clk 0:00:15.1]} 36... e5+ {[%clk 0:00:18.5]} 37. fxe5+ {[%clk
0:00:14.7]} 37... fxe5+ {[%clk 0:00:19.4]} 38. Kc3 {[%clk 0:00:10.8]} 38... Bc6
{[%clk 0:00:17.6]} 39. Kc4 {[%clk 0:00:05.3]} 39... Bxb5+ {[%clk 0:00:16.8]} 40.
axb5 {[%clk 0:00:05.3]} 40... Kc7 {[%clk 0:00:12.4]} 41. Kc5 {[%clk 0:00:05.4]}
41... e4 {[%clk 0:00:08.8]} 42. Kd4 {[%clk 0:00:05.5]} 42... a4 {[%clk
0:00:09.4]} 43. Kxe4 {[%clk 0:00:04.6]} 43... a3 {[%clk 0:00:10]} 0-1

[Event "Early-Titled-Tuesday-Blitz-November-28-2023"]
[Site "Chess.com"]
[Date "2023.11.28"]
[Round "10"]
[White "jamengrand"]
[Black "WindWhistler11"]
[Result "0-1"]
[WhiteElo "2288"]
[BlackElo "2561"]
[TimeControl "180+1"]
[EndTime "10:02:18 PST"]
[Termination "WindWhistler11 won on time"]

1. e4 {[%clk 0:03:00.9]} 1... e6 {[%clk 0:03:00.3]} 2. d4 {[%clk 0:02:58.9]}
2... d5 {[%clk 0:03:00.9]} 3. Nd2 {[%clk 0:02:56.3]} 3... Nc6 {[%clk 0:03:00.3]}
4. Bb5 {[%clk 0:02:53.4]} 4... Nf6 {[%clk 0:02:58.3]} 5. e5 {[%clk 0:02:52.4]}
5... Nd7 {[%clk 0:02:58.6]} 6. Nb3 {[%clk 0:02:51.2]} 6... a5 {[%clk 0:02:44.4]}
7. a4 {[%clk 0:02:47.3]} 7... Na7 {[%clk 0:02:44.5]} 8. Bf1 {[%clk 0:02:47.3]}
8... b6 {[%clk 0:02:45.1]} 9. Nf3 {[%clk 0:02:41.1]} 9... c5 {[%clk 0:02:45.5]}
10. c3 {[%clk 0:02:39.4]} 10... Nc6 {[%clk 0:02:40.9]} 11. Bb5 {[%clk
0:02:38.6]} 11... Na7 {[%clk 0:02:25.4]} 12. Be2 {[%clk 0:02:30.3]} 12... Be7
{[%clk 0:02:25.3]} 13. O-O {[%clk 0:02:28]} 13... c4 {[%clk 0:02:21.6]} 14. Nbd2
{[%clk 0:02:26.7]} 14... g5 {[%clk 0:02:22.4]} 15. Ne1 {[%clk 0:02:20.7]} 15...
Nf8 {[%clk 0:02:16]} 16. Bh5 {[%clk 0:02:18.8]} 16... Ng6 {[%clk 0:02:13.3]} 17.
g3 {[%clk 0:02:18.9]} 17... Bd7 {[%clk 0:02:03.4]} 18. Ng2 {[%clk 0:02:18.7]}
18... Nc6 {[%clk 0:01:43.7]} 19. f4 {[%clk 0:02:15.3]} 19... gxf4 {[%clk
0:01:41.6]} 20. Nxf4 {[%clk 0:02:14.9]} 20... Bg5 {[%clk 0:01:40.2]} 21. Qf3
{[%clk 0:01:46.7]} 21... Bxf4 {[%clk 0:01:34.3]} 22. gxf4 {[%clk 0:01:45]} 22...
Nce7 {[%clk 0:01:34.1]} 23. Kh1 {[%clk 0:01:38.1]} 23... Rg8 {[%clk 0:01:28.1]}
24. Rg1 {[%clk 0:01:35.6]} 24... Nf5 {[%clk 0:01:25.7]} 25. Nf1 {[%clk
0:01:35.1]} 25... Qe7 {[%clk 0:01:14.5]} 26. Ne3 {[%clk 0:01:30.8]} 26... Nfh4
{[%clk 0:01:08.5]} 27. Qf2 {[%clk 0:01:23.9]} 27... O-O-O {[%clk 0:00:59.3]} 28.
b3 {[%clk 0:01:10]} 28... Rdf8 {[%clk 0:00:54.9]} 29. Ba3 {[%clk 0:01:09.4]}
29... Qd8 {[%clk 0:00:51.3]} 30. bxc4 {[%clk 0:01:06.5]} 30... dxc4 {[%clk
0:00:51.2]} 31. d5 {[%clk 0:01:00.6]} 31... exd5 {[%clk 0:00:47.5]} 32. Bxf8
{[%clk 0:00:52.8]} 32... d4 {[%clk 0:00:32.8]} 33. Bg4 {[%clk 0:00:10.7]} 33...
dxe3 {[%clk 0:00:26.8]} 34. Qxe3 {[%clk 0:00:11.1]} 34... Rxf8 {[%clk 0:00:16]}
35. Rad1 {[%clk 0:00:08.5]} 35... f5 {[%clk 0:00:07.3]} 36. exf6 {[%clk
0:00:07.8]} 36... Rf7 {[%clk 0:00:05.4]} 37. Qe4 {[%clk 0:00:02.1]} 37... Kc7
{[%clk 0:00:03.4]} 0-1

[Event "Early-Titled-Tuesday-Blitz-November-28-2023"]
[Site "Chess.com"]
[Date "2023.11.28"]
[Round "10"]
[White "masenik"]
[Black "Kildepiotr"]
[Result "1/2-1/2"]
[WhiteElo "2505"]
[BlackElo "2687"]
[TimeControl "180+1"]
[EndTime "10:02:18 PST"]
[Termination "Game drawn by repetition"]

1. e4 {[%clk 0:03:00.9]} 1... g6 {[%clk 0:02:47.5]} 2. d4 {[%clk 0:03:00.2]}
2... Bg7 {[%clk 0:02:47.4]} 3. h4 {[%clk 0:03:00.7]} 3... h5 {[%clk 0:02:46.2]}
4. Be2 {[%clk 0:02:59.7]} 4... c6 {[%clk 0:02:46.7]} 5. Nc3 {[%clk 0:02:49.5]}
5... d5 {[%clk 0:02:46.4]} 6. e5 {[%clk 0:02:47.8]} 6... Nh6 {[%clk 0:02:45.5]}
7. Bg5 {[%clk 0:02:45.7]} 7... f6 {[%clk 0:02:44.4]} 8. exf6 {[%clk 0:02:44.8]}
8... exf6 {[%clk 0:02:45.3]} 9. Bf4 {[%clk 0:02:43.6]} 9... Kf7 {[%clk
0:02:42.5]} 10. Nf3 {[%clk 0:02:34]} 10... Bg4 {[%clk 0:02:40.5]} 11. Qd2 {[%clk
0:02:29.3]} 11... Nd7 {[%clk 0:02:36.9]} 12. O-O-O {[%clk 0:02:29]} 12... Nb6
{[%clk 0:02:35.2]} 13. Kb1 {[%clk 0:02:10.7]} 13... Qd7 {[%clk 0:02:29.5]} 14.
Rde1 {[%clk 0:01:58.5]} 14... Rae8 {[%clk 0:02:27.6]} 15. b3 {[%clk 0:01:49.5]}
15... Nf5 {[%clk 0:02:19.3]} 16. Ng1 {[%clk 0:01:33.6]} 16... Bxe2 {[%clk
0:02:18.9]} 17. Ngxe2 {[%clk 0:01:30.9]} 17... Nd6 {[%clk 0:02:12.2]} 18. f3
{[%clk 0:01:29]} 18... Re6 {[%clk 0:02:03.6]} 19. Bg3 {[%clk 0:01:23.9]} 19...
Bh6 {[%clk 0:01:57]} 20. Bf4 {[%clk 0:01:23.8]} 20... Bg7 {[%clk 0:01:54.2]} 21.
g4 {[%clk 0:01:24.1]} 21... hxg4 {[%clk 0:01:48.8]} 22. fxg4 {[%clk 0:01:25]}
22... Ne4 {[%clk 0:01:48.2]} 23. Nxe4 {[%clk 0:01:25.2]} 23... Rxe4 {[%clk
0:01:49.1]} 24. Ng3 {[%clk 0:01:23]} 24... Rxe1+ {[%clk 0:01:48.8]} 25. Rxe1
{[%clk 0:01:19.4]} 25... Qxg4 {[%clk 0:01:48.8]} 26. h5 {[%clk 0:01:15.3]} 26...
gxh5 {[%clk 0:01:46.6]} 27. Qe3 {[%clk 0:01:11]} 27... Qd7 {[%clk 0:01:42.5]}
28. Qf3 {[%clk 0:01:03]} 28... h4 {[%clk 0:01:33.9]} 29. Nh5 {[%clk 0:01:02.8]}
29... Qf5 {[%clk 0:01:33.3]} 30. Nxg7 {[%clk 0:01:01.4]} 30... Kxg7 {[%clk
0:01:33]} 31. Re7+ {[%clk 0:00:58.4]} 31... Kg6 {[%clk 0:01:00.9]} 32. Qg2+
{[%clk 0:00:24.9]} 32... Kh5 {[%clk 0:01:00.5]} 33. Qg7 {[%clk 0:00:22]} 33...
Qxf4 {[%clk 0:00:57.1]} 34. Qxh8+ {[%clk 0:00:21.7]} 34... Kg4 {[%clk
0:00:57.3]} 35. Rg7+ {[%clk 0:00:17.7]} 35... Kf3 {[%clk 0:00:48.1]} 36. Qh5+
{[%clk 0:00:16.5]} 36... Ke3 {[%clk 0:00:45.5]} 37. Rg4 {[%clk 0:00:15]} 37...
Qf2 {[%clk 0:00:12.1]} 38. Rxh4 {[%clk 0:00:09.1]} 38... Qe1+ {[%clk 0:00:10.3]}
39. Kb2 {[%clk 0:00:09.3]} 39... Nc4+ {[%clk 0:00:08.1]} 40. bxc4 {[%clk
0:00:06.5]} 40... Qb4+ {[%clk 0:00:08.5]} 41. Kc1 {[%clk 0:00:07.2]} 41... Qe1+
{[%clk 0:00:08.5]} 42. Kb2 {[%clk 0:00:03]} 42... Qb4+ {[%clk 0:00:08.4]} 43.
Kc1 {[%clk 0:00:02.8]} 43... Qd2+ {[%clk 0:00:08.6]} 44. Kb2 {[%clk 0:00:02.9]}
44... Qb4+ {[%clk 0:00:08.9]} 1/2-1/2

[Event "Early-Titled-Tuesday-Blitz-November-28-2023"]
[Site "Chess.com"]
[Date "2023.11.28"]
[Round "10"]
[White "Gabix_94"]
[Black "averageFM"]
[Result "1-0"]
[WhiteElo "2757"]
[BlackElo "2616"]
[TimeControl "180+1"]
[EndTime "10:02:20 PST"]
[Termination "Gabix_94 won by resignation"]

1. a3 {[%clk 0:03:00.9]} 1... e5 {[%clk 0:02:56.2]} 2. d4 {[%clk 0:03:00.1]}
2... exd4 {[%clk 0:02:55.2]} 3. Qxd4 {[%clk 0:03:00.6]} 3... Nc6 {[%clk
0:02:55.1]} 4. Qa4 {[%clk 0:02:59.1]} 4... Nf6 {[%clk 0:02:54.5]} 5. Nc3 {[%clk
0:02:59.8]} 5... d5 {[%clk 0:02:54.3]} 6. Bg5 {[%clk 0:02:59.5]} 6... Be6 {[%clk
0:02:44.5]} 7. O-O-O {[%clk 0:02:57.8]} 7... Be7 {[%clk 0:02:31.8]} 8. e4 {[%clk
0:02:56.8]} 8... Nxe4 {[%clk 0:02:21.4]} 9. Bxe7 {[%clk 0:02:48]} 9... Qxe7
{[%clk 0:02:04]} 10. Nxe4 {[%clk 0:02:44.8]} 10... dxe4 {[%clk 0:02:04.9]} 11.
Qxe4 {[%clk 0:02:40.2]} 11... O-O {[%clk 0:01:58.1]} 12. Nf3 {[%clk 0:02:37.9]}
12... Rad8 {[%clk 0:01:44.5]} 13. Bd3 {[%clk 0:02:33.5]} 13... g6 {[%clk
0:01:44.1]} 14. Rhe1 {[%clk 0:02:29.9]} 14... Qf6 {[%clk 0:01:43.4]} 15. h4
{[%clk 0:02:18.9]} 15... Bd5 {[%clk 0:01:28.4]} 16. Qe3 {[%clk 0:02:11.8]} 16...
Bxf3 {[%clk 0:01:25.2]} 17. gxf3 {[%clk 0:02:12.7]} 17... Qxh4 {[%clk
0:01:17.8]} 18. Rh1 {[%clk 0:02:07.9]} 18... Qd4 {[%clk 0:01:16]} 19. Qh6 {[%clk
0:02:04.4]} 19... Qg7 {[%clk 0:01:15.4]} 20. Qh2 {[%clk 0:02:05.1]} 20... Ne5
{[%clk 0:01:07.9]} 21. Be4 {[%clk 0:02:01.6]} 21... Nc4 {[%clk 0:01:06.1]} 22.
c3 {[%clk 0:01:58.3]} 22... h5 {[%clk 0:01:03.8]} 23. Rxd8 {[%clk 0:01:47.2]}
23... Qh6+ {[%clk 0:00:51.7]} 24. Kb1 {[%clk 0:01:47.6]} 24... Rxd8 {[%clk
0:00:51.3]} 25. Qxc7 {[%clk 0:01:48.3]} 25... Nxa3+ {[%clk 0:00:38.1]} 26. bxa3
{[%clk 0:01:46.6]} 26... Qg5 {[%clk 0:00:37.7]} 27. a4 {[%clk 0:01:38]} 27...
Rd2 {[%clk 0:00:35.3]} 28. Rc1 {[%clk 0:01:30]} 28... Rxf2 {[%clk 0:00:29.5]}
29. Rd1 {[%clk 0:01:28.1]} 29... Kg7 {[%clk 0:00:18.9]} 30. Qc4 {[%clk 0:01:09]}
30... Qg2 {[%clk 0:00:16.2]} 31. Ka1 {[%clk 0:01:01.6]} 31... h4 {[%clk
0:00:14.5]} 32. Qd4+ {[%clk 0:00:47]} 32... Kh7 {[%clk 0:00:14.2]} 33. Qd5
{[%clk 0:00:47.6]} 33... Kg7 {[%clk 0:00:13.7]} 34. Qe5+ {[%clk 0:00:41.5]}
34... Kh7 {[%clk 0:00:10.3]} 35. c4 {[%clk 0:00:41]} 35... Ra2+ {[%clk
0:00:08.5]} 36. Kb1 {[%clk 0:00:40]} 36... Rxa4 {[%clk 0:00:07]} 37. Qc3 {[%clk
0:00:34.6]} 37... Qa2+ {[%clk 0:00:06]} 38. Kc1 {[%clk 0:00:35.2]} 38... Qa1+
{[%clk 0:00:06.3]} 39. Qxa1 {[%clk 0:00:35.6]} 39... Rxa1+ {[%clk 0:00:06.6]}
40. Bb1 {[%clk 0:00:36.5]} 40... Ra3 {[%clk 0:00:06.7]} 41. Rh1 {[%clk 0:00:35]}
41... Rxf3 {[%clk 0:00:05.2]} 42. Rxh4+ {[%clk 0:00:35.6]} 42... Kg7 {[%clk
0:00:06.1]} 43. Rd4 {[%clk 0:00:35.9]} 43... Re3 {[%clk 0:00:03.6]} 44. Be4
{[%clk 0:00:35.7]} 44... f5 {[%clk 0:00:02.6]} 45. Bxb7 {[%clk 0:00:35.3]} 45...
Kf6 {[%clk 0:00:03.5]} 46. Kd2 {[%clk 0:00:33.8]} 46... Ra3 {[%clk 0:00:02.9]}
47. c5 {[%clk 0:00:33.9]} 47... g5 {[%clk 0:00:03.1]} 48. c6 {[%clk 0:00:33.9]}
48... Ra2+ {[%clk 0:00:03.6]} 49. Kc3 {[%clk 0:00:33.4]} 49... Ra3+ {[%clk
0:00:04]} 50. Kb4 {[%clk 0:00:33.2]} 50... Ra1 {[%clk 0:00:03.8]} 51. c7 {[%clk
0:00:33.3]} 51... Ke5 {[%clk 0:00:03.2]} 52. Rd5+ {[%clk 0:00:33.2]} 1-0

[Event "Early-Titled-Tuesday-Blitz-November-28-2023"]
[Site "Chess.com"]
[Date "2023.11.28"]
[Round "10"]
[White "Dinosaurio_1975"]
[Black "kunaevchess"]
[Result "1-0"]
[WhiteElo "2521"]
[BlackElo "2174"]
[TimeControl "180+1"]
[EndTime "10:02:21 PST"]
[Termination "Dinosaurio_1975 won by resignation"]

1. e4 {[%clk 0:03:00.9]} 1... e5 {[%clk 0:02:58.5]} 2. Nf3 {[%clk 0:03:00.5]}
2... Nf6 {[%clk 0:02:58.6]} 3. Nxe5 {[%clk 0:02:59]} 3... d6 {[%clk 0:02:58.1]}
4. Nd3 {[%clk 0:02:55]} 4... Nxe4 {[%clk 0:02:59]} 5. Qe2 {[%clk 0:02:54.6]}
5... Qe7 {[%clk 0:02:58.4]} 6. Nf4 {[%clk 0:02:53.8]} 6... Nf6 {[%clk
0:02:57.6]} 7. d4 {[%clk 0:02:52.2]} 7... d5 {[%clk 0:02:56.7]} 8. f3 {[%clk
0:02:48.4]} 8... c6 {[%clk 0:02:56.3]} 9. h4 {[%clk 0:02:47.7]} 9... h5 {[%clk
0:02:54.9]} 10. Kf2 {[%clk 0:02:45]} 10... Bf5 {[%clk 0:02:54.1]} 11. c3 {[%clk
0:02:36.1]} 11... Qxe2+ {[%clk 0:02:50.8]} 12. Bxe2 {[%clk 0:02:35.5]} 12... Bd6
{[%clk 0:02:51.7]} 13. Be3 {[%clk 0:02:31.4]} 13... O-O {[%clk 0:02:50.5]} 14.
Nd2 {[%clk 0:02:30.7]} 14... Re8 {[%clk 0:02:50.2]} 15. Nf1 {[%clk 0:02:30.7]}
15... Nbd7 {[%clk 0:02:49.1]} 16. Bd2 {[%clk 0:02:23.3]} 16... Re7 {[%clk
0:02:40.2]} 17. Ng3 {[%clk 0:02:21.9]} 17... Bg6 {[%clk 0:02:31.9]} 18. Nxg6
{[%clk 0:02:21.5]} 18... fxg6 {[%clk 0:02:32.2]} 19. Bd3 {[%clk 0:02:15.4]}
19... Kf7 {[%clk 0:02:28.7]} 20. Rae1 {[%clk 0:02:13.5]} 20... Rae8 {[%clk
0:02:28.8]} 21. Rxe7+ {[%clk 0:02:12.4]} 21... Rxe7 {[%clk 0:02:29.7]} 22. Re1
{[%clk 0:02:12.3]} 22... Rxe1 {[%clk 0:02:25.5]} 23. Bxe1 {[%clk 0:02:13.2]}
23... Bf4 {[%clk 0:02:23.2]} 24. Ne2 {[%clk 0:02:12.2]} 24... Bh6 {[%clk
0:02:19]} 25. Kf1 {[%clk 0:02:03.8]} 25... g5 {[%clk 0:02:18.3]} 26. hxg5 {[%clk
0:02:02.2]} 26... Bxg5 {[%clk 0:02:18.2]} 27. Bg3 {[%clk 0:02:02.7]} 27... h4
{[%clk 0:02:15.8]} 28. Bc7 {[%clk 0:01:59.2]} 28... Nf8 {[%clk 0:02:09.1]} 29.
Bb8 {[%clk 0:01:55.2]} 29... a5 {[%clk 0:01:52.4]} 30. a4 {[%clk 0:01:51.8]}
30... Ne6 {[%clk 0:01:50.6]} 31. Kf2 {[%clk 0:01:46.3]} 31... Nd7 {[%clk
0:01:49.3]} 32. Bd6 {[%clk 0:01:44.2]} 32... Nb6 {[%clk 0:01:49.3]} 33. b3
{[%clk 0:01:41.7]} 33... Nc8 {[%clk 0:01:47.7]} 34. Be5 {[%clk 0:01:40.9]} 34...
Ne7 {[%clk 0:01:45.5]} 35. b4 {[%clk 0:01:25.8]} 35... axb4 {[%clk 0:01:43.2]}
36. cxb4 {[%clk 0:01:26.7]} 36... Bd2 {[%clk 0:01:34.6]} 37. b5 {[%clk
0:01:16.5]} 37... Nc8 {[%clk 0:01:32]} 38. f4 {[%clk 0:00:34.2]} 38... g6 {[%clk
0:01:27.3]} 39. bxc6 {[%clk 0:00:28.9]} 39... bxc6 {[%clk 0:01:26.8]} 40. f5
{[%clk 0:00:29.6]} 40... gxf5 {[%clk 0:01:26.3]} 41. Bxf5 {[%clk 0:00:30.5]}
41... Nb6 {[%clk 0:01:26.3]} 42. Bc2 {[%clk 0:00:27.2]} 42... Ng5 {[%clk
0:01:19.6]} 43. Bf4 {[%clk 0:00:25.4]} 43... Bxf4 {[%clk 0:01:13.4]} 44. Nxf4
{[%clk 0:00:26.3]} 44... Ne4+ {[%clk 0:01:13.5]} 45. Bxe4 {[%clk 0:00:25.8]}
45... dxe4 {[%clk 0:01:13.8]} 46. a5 {[%clk 0:00:26.4]} 46... Nc4 {[%clk
0:01:10.9]} 47. a6 {[%clk 0:00:26.8]} 47... Ke7 {[%clk 0:01:10.9]} 48. a7 {[%clk
0:00:25.9]} 48... Nb6 {[%clk 0:01:11]} 49. Ke3 {[%clk 0:00:26.6]} 49... Kd7
{[%clk 0:01:11.3]} 50. Kxe4 {[%clk 0:00:26.9]} 50... Kc7 {[%clk 0:01:11.7]} 51.
Ng6 {[%clk 0:00:22.7]} 51... Kb7 {[%clk 0:01:12.6]} 52. Nxh4 {[%clk 0:00:23.1]}
52... Kxa7 {[%clk 0:01:13.5]} 53. g4 {[%clk 0:00:23.3]} 53... Kb7 {[%clk
0:01:13.7]} 54. g5 {[%clk 0:00:23.8]} 54... Kc7 {[%clk 0:01:14.6]} 55. g6 {[%clk
0:00:19.4]} 55... Nd5 {[%clk 0:01:04.6]} 56. Kf5 {[%clk 0:00:16.2]} 56... Ne7+
{[%clk 0:01:00.2]} 57. Kf6 {[%clk 0:00:15]} 57... Kd6 {[%clk 0:00:57.3]} 58.
Nf5+ {[%clk 0:00:13.7]} 58... Nxf5 {[%clk 0:00:54.7]} 59. Kxf5 {[%clk
0:00:14.6]} 59... Ke7 {[%clk 0:00:55.4]} 60. Ke5 {[%clk 0:00:15]} 60... Kf8
{[%clk 0:00:55.4]} 61. Kf6 {[%clk 0:00:13.6]} 61... Kg8 {[%clk 0:00:54.1]} 62.
g7 {[%clk 0:00:14]} 62... Kh7 {[%clk 0:00:52.2]} 63. Kf7 {[%clk 0:00:13.7]}
63... Kh6 {[%clk 0:00:52.4]} 64. g8=Q {[%clk 0:00:13]} 64... Kh5 {[%clk
0:00:53.3]} 65. Qg3 {[%clk 0:00:12.9]} 1-0